Workbook

Sheet 目录
A1: 目录
A2: 序号 | B2: 内容
A3: 1 | B3: 一般公共财政收支预算总表
A4: 2 | B4: 一般公共财政收入预算表
A5: 3 | B5: 一般公共财政支出预算表
A6: 4 | B6: 一般公共预算本级基本支出预算表
A7: 5 | B7: 一般公共预算税收返还和转移支付表
A8: 6 | B8: 专项转移支付分地区分项目公开表
A9: 7 | B9: 政府一般债务限额和余额情况表
A10: 8 | B10: 政府性基金收入预算表
A11: 9 | B11: 政府性基金支出预算表
A12: 10 | B12: 政府性基金转移支付表
A13: 11 | B13: 政府专项债务限额和余额情况表
A14: 12 | B14: 国有资本经营收入预算表
A15: 13 | B15: 国有资本经营支出预算表
A16: 14 | B16: 社会保险基金收入预算表
A17: 15 | B17: 社会保险基金支出预算表
A18: 16 | B18: “三公”经费预算汇总表

Sheet 1一般公共预算收支总表
A2: 岳阳县张谷英镇2021年公共财政预算收支总表
D3: 单位：万元
A4: 收 入 项 目 | B4: 金 额 | C4: 支 出 项 目 | D4: 金 额
A5: 一、地方公共财政预算收入 | B5: =SUM(B6:B7) -> 636.00 | C5: 一、本年支出 | D5: =SUM(D6:D32) -> 5252.00
A6: 1、税收返还收入 | B6: 232.50 | C6: 201一般公共服务 | D6: 1611
A7: 2、非税收入 | B7: 403.50 | C7: 203国防 | D7: 12
A8: 二、上级财政补助收入 | B8: =B9+B13 -> 4309.00 | C8: 204公共安全 | D8: 83
A9: （一）上级专项转移支付 | B9: =B10+B11+B12 -> 2552.74 | C9: 205教育 | D9: 80
A10: 1、村级组织运转 | B10: 357.79 | C10: 206科学技术 | D10: 0
A11: 2、铁山水资源保护 | B11: 0.00 | C11: 207文化体育与传媒 | D11: 193
A12: 3、专项指标 | B12: 2194.95 | C12: 208社会保障和就业 | D12: 841.00
A13: （二）一般性转移支付 | B13: =SUM(B14:B26) -> 1756.26 | C13: 210医疗卫生与计划生育 | D13: 160
A14: 1、基数补贴 | B14: 84.16 | C14: 211节能环保 | D14: 180
A15: 2、税收返还 | B15: 0.00 | C15: 212城乡社区 | D15: 253
A16: 3、税改转移支付 | B16: 117.33 | C16: 213农林水 | D16: 1219
A17: 4、工资转移支付 | B17: 55.27 | C17: 214交通运输 | D17: 100
A18: 5、铁山水资源保护 | B18: 0.00 | C18: 215资源勘探信息等 | D18: 22
A19: 6、财力性转移支付 | B19: 135.99 | C19: 216商业服务业等 | D19: 0
A20: 7、增收奖 | B20: 0.00 | C20: 217金融 | D20: 6
A21: 8、体制补助 | B21: 138.10 | C21: 220国土海洋气象等 | D21: 30
A22: 9、均衡性转转移支付 | B22: 1055.73 | C22: 221住房保障 | D22: 304
A23: 10、绩效奖励 | B23: 99.00 | C23: 224灾害防治及应急管理支出 | D23: 118
A24: 11、县财政负担医保金 | B24: 3.40 | C24: 227预备费 | D24: 0
A25: 12、村干部参加城乡居民养老保险补助 | B25: 17.28 | C25: 229其他 | D25: 40
A26: 13、其他收入 | B26: 50 | C26: 231债务还本支出 | D26: 0
C27: 232债务利息支出
A33: 三、上年结余 | B33: 307 | C33: 二、本年结余 | D33: =B34-D5 -> 0.00
A34: 收 入 合 计 | B34: =B5+B8+B33 -> 5252.00 | C34: 支 出 合 计 | D34: =D5 -> 5252.00

Sheet 2一般公共预算收入表
A1: 岳阳县张谷英镇2021年公共财政预算收入计划表
B2: 单位：万元
A3: 收 入 项 目 | B3: 2020年计划数
A4: 公共财政预算收入总计 | B4: =B5 -> 636.00
A5: 地方公共财政预算收入合计 | B5: =B6+B22 -> 636.00
A6: 一、税收收入小计 | B6: =SUM(B7:B21) -> 232.50
A7: 增值税 | B7: 232.50
A8: 企业所得税
A9: 个人所得税
A10: 资源税
A11: 城市维护建设税
A12: 房产税
A13: 印花税
A14: 城镇土地使用税
A15: 土地增值税
A16: 车船使用和牌照税
A17: 耕地占用税
A18: 契税
A19: 环境保护税
A20: 烟叶税
A21: 其他税收收入
A22: 二、非税收入小计 | B22: 403.50
A23: 专项收入
A24: 其他专项收入
A25: 教育费附加收入
A26: 行政事业性收费收入
A27: 罚没收入
A28: 国有资本经营收入
A29: 国有资源（资产）有偿使用收入
A30: 其他收入 | B30: 403.50
A31: 附： 上划省收入
A32: 其中:增值税12.5%部分
A33: 营业税
A34: 企业所得税
A35: 个人所得税
A36: 资源税
A37: 环境保护税
A38: 城镇土地使用税
A39: 上划中央收入
A40: 其中： 增值税50％部分
A41: 消费税
A42: 企业所得税
A43: 个人所得税
A44: 营业税
A45: 税务部门征收 | B45: 232.50
A46: 财政部门征收 | B46: 403.50
A47: 合计 | B47: =B5 -> 636.00
A48: 税比 | B48: 0.75

Sheet 3一般公共预算支出表
A1: 岳阳县张谷英镇2021年一般公共预算支出表
A3: 科目编码 | B3: 科目名称 | C3: 支出
B4: 一般公共预算支出合计 | C4: 5,252
A5: 201 | B5: 一般公共服务支出 | C5: =C6+C18+C27+C38+C49+C60+C71+C83+C92+C105+C115+C124+C135+C148+C155+C163+C169+C176+C183+C190+C197+C204+C212+C218+C224+C231+C246 -> 1,611
A6: 20101 | B6: 人大事务 | C6: =SUM(C7:C17) -> 10
A7: 2010101 | B7: 行政运行 | C7: 4
A8: 2010102 | B8: 一般行政管理事务
A9: 2010103 | B9: 机关服务
A10: 2010104 | B10: 人大会议 | C10: 4
A11: 2010105 | B11: 人大立法
A12: 2010106 | B12: 人大监督
A13: 2010107 | B13: 人大代表履职能力提升
A14: 2010108 | B14: 代表工作 | C14: 2
A15: 2010109 | B15: 人大信访工作
A16: 2010150 | B16: 事业运行
A17: 2010199 | B17: 其他人大事务支出
A18: 20102 | B18: 政协事务 | C18: =SUM(C19:C26) -> 5
A19: 2010201 | B19: 行政运行 | C19: 2
A20: 2010202 | B20: 一般行政管理事务
A21: 2010203 | B21: 机关服务
A22: 2010204 | B22: 政协会议 | C22: 2
A23: 2010205 | B23: 委员视察
A24: 2010206 | B24: 参政议政
A25: 2010250 | B25: 事业运行
A26: 2010299 | B26: 其他政协事务支出 | C26: 1
A27: 20103 | B27: 政府办公厅(室)及相关机构事务 | C27: =SUM(C28:C37) -> 911
A28: 2010301 | B28: 行政运行 | C28: 550
A29: 2010302 | B29: 一般行政管理事务 | C29: 281
A30: 2010303 | B30: 机关服务
A31: 2010304 | B31: 专项服务
A32: 2010305 | B32: 专项业务活动
A33: 2010306 | B33: 政务公开审批
A34: 2010308 | B34: 信访事务
A35: 2010309 | B35: 参事事务
A36: 2010350 | B36: 事业运行
A37: 2010399 | B37: 其他政府办公厅(室)及相关机构事务支出 | C37: 80
A38: 20104 | B38: 发展与改革事务 | C38: =SUM(C39:C48) -> 20
A39: 2010401 | B39: 行政运行
A40: 2010402 | B40: 一般行政管理事务
A41: 2010403 | B41: 机关服务
A42: 2010404 | B42: 战略规划与实施
A43: 2010405 | B43: 日常经济运行调节
A44: 2010406 | B44: 社会事业发展规划
A45: 2010407 | B45: 经济体制改革研究
A46: 2010408 | B46: 物价管理
A47: 2010450 | B47: 事业运行
A48: 2010499 | B48: 其他发展与改革事务支出 | C48: 20
A49: 20105 | B49: 统计信息事务 | C49: =SUM(C50:C59) -> 10
A50: 2010501 | B50: 行政运行
A51: 2010502 | B51: 一般行政管理事务 | C51: 10
A52: 2010503 | B52: 机关服务
A53: 2010504 | B53: 信息事务
A54: 2010505 | B54: 专项统计业务
A55: 2010506 | B55: 统计管理
A56: 2010507 | B56: 专项普查活动
A57: 2010508 | B57: 统计抽样调查
A58: 2010550 | B58: 事业运行
A59: 2010599 | B59: 其他统计信息事务支出
A60: 20106 | B60: 财政事务 | C60: =SUM(C61:C70) -> 65
A61: 2010601 | B61: 行政运行 | C61: 55
A62: 2010602 | B62: 一般行政管理事务
A63: 2010603 | B63: 机关服务
A64: 2010604 | B64: 预算改革业务
A65: 2010605 | B65: 财政国库业务
A66: 2010606 | B66: 财政监察
A67: 2010607 | B67: 信息化建设
A68: 2010608 | B68: 财政委托业务支出
A69: 2010650 | B69: 事业运行
A70: 2010699 | B70: 其他财政事务支出 | C70: 10
A71: 20107 | B71: 税收事务 | C71: =SUM(C72:C82) -> 20
A72: 2010701 | B72: 行政运行
A73: 2010702 | B73: 一般行政管理事务
A74: 2010703 | B74: 机关服务
A75: 2010704 | B75: 税务办案
A76: 2010705 | B76: 发票管理及税务登记
A77: 2010706 | B77: 代扣代收代征税款手续费
A78: 2010707 | B78: 税务宣传
A79: 2010708 | B79: 协税护税
A80: 2010709 | B80: 信息化建设
A81: 2010750 | B81: 事业运行
A82: 2010799 | B82: 其他税收事务支出 | C82: 20
A83: 20108 | B83: 审计事务 | C83: =SUM(C84:C91) -> 10
A84: 2010801 | B84: 行政运行
A85: 2010802 | B85: 一般行政管理事务 | C85: 10
A86: 2010803 | B86: 机关服务
A87: 2010804 | B87: 审计业务
A88: 2010805 | B88: 审计管理
A89: 2010806 | B89: 信息化建设
A90: 2010850 | B90: 事业运行
A91: 2010899 | B91: 其他审计事务支出
A92: 20109 | B92: 海关事务 | C92: =SUM(C93:C104) -> 0
A93: 2010901 | B93: 行政运行
A94: 2010902 | B94: 一般行政管理事务
A95: 2010903 | B95: 机关服务
A96: 2010905 | B96: 缉私办案
A97: 2010907 | B97: 口岸管理
A98: 2010908 | B98: 信息化建设
A99: 2010909 | B99: 海关关务
A100: 2010910 | B100: 关税征管
A101: 2010911 | B101: 海关监管
A102: 2010912 | B102: 检验检疫
A103: 2010950 | B103: 事业运行
A104: 2010999 | B104: 其他海关事务支出
A105: 20110 | B105: 人力资源事务 | C105: =SUM(C106:C114) -> 15
A106: 2011001 | B106: 行政运行
A107: 2011002 | B107: 一般行政管理事务 | C107: 10
A108: 2011003 | B108: 机关服务
A109: 2011004 | B109: 政府特殊津贴
A110: 2011005 | B110: 资助留学回国人员
A111: 2011007 | B111: 博士后日常经费
A112: 2011008 | B112: 引进人才费用
A113: 2011050 | B113: 事业运行
A114: 2011099 | B114: 其他人力资源事务支出 | C114: 5
A115: 20111 | B115: 纪检监察事务 | C115: =SUM(C116:C123) -> 30
A116: 2011101 | B116: 行政运行
A117: 2011102 | B117: 一般行政管理事务 | C117: 20
A118: 2011103 | B118: 机关服务
A119: 2011104 | B119: 大案要案查处
A120: 2011105 | B120: 派驻派出机构
A121: 2011106 | B121: 巡视工作
A122: 2011150 | B122: 事业运行
A123: 2011199 | B123: 其他纪检监察事务支出 | C123: 10
A124: 20113 | B124: 商贸事务 | C124: =SUM(C125:C134) -> 50
A125: 2011301 | B125: 行政运行
A126: 2011302 | B126: 一般行政管理事务
A127: 2011303 | B127: 机关服务
A128: 2011304 | B128: 对外贸易管理
A129: 2011305 | B129: 国际经济合作
A130: 2011306 | B130: 外资管理
A131: 2011307 | B131: 国内贸易管理
A132: 2011308 | B132: 招商引资 | C132: 50
A133: 2011350 | B133: 事业运行
A134: 2011399 | B134: 其他商贸事务支出
A135: 20114 | B135: 知识产权事务 | C135: =SUM(C136:C147) -> 0
A136: 2011401 | B136: 行政运行
A137: 2011402 | B137: 一般行政管理事务
A138: 2011403 | B138: 机关服务
A139: 2011404 | B139: 专利审批
A140: 2011405 | B140: 国家知识产权战略
A141: 2011406 | B141: 专利试点和产业化推进
A142: 2011408 | B142: 国际组织专项活动
A143: 2011409 | B143: 知识产权宏观管理
A144: 2011410 | B144: 商标管理
A145: 2011411 | B145: 原产地地理标志管理
A146: 2011450 | B146: 事业运行
A147: 2011499 | B147: 其他知识产权事务支出
A148: 20123 | B148: 民族事务 | C148: =SUM(C149:C154) -> 0
A149: 2012301 | B149: 行政运行
A150: 2012302 | B150: 一般行政管理事务
A151: 2012303 | B151: 机关服务
A152: 2012304 | B152: 民族工作专项
A153: 2012350 | B153: 事业运行
A154: 2012399 | B154: 其他民族事务支出
A155: 20125 | B155: 港澳台事务 | C155: =SUM(C156:C162) -> 0
A156: 2012501 | B156: 行政运行
A157: 2012502 | B157: 一般行政管理事务
A158: 2012503 | B158: 机关服务
A159: 2012504 | B159: 港澳事务
A160: 2012505 | B160: 台湾事务
A161: 2012550 | B161: 事业运行
A162: 2012599 | B162: 其他港澳台事务支出
A163: 20126 | B163: 档案事务 | C163: =SUM(C164:C168) -> 6
A164: 2012601 | B164: 行政运行
A165: 2012602 | B165: 一般行政管理事务
A166: 2012603 | B166: 机关服务
A167: 2012604 | B167: 档案馆
A168: 2012699 | B168: 其他档案事务支出 | C168: 6
A169: 20128 | B169: 民主党派及工商联事务 | C169: =SUM(C170:C175) -> 0
A170: 2012801 | B170: 行政运行
A171: 2012802 | B171: 一般行政管理事务
A172: 2012803 | B172: 机关服务
A173: 2012804 | B173: 参政议政
A174: 2012850 | B174: 事业运行
A175: 2012899 | B175: 其他民主党派及工商联事务支出
A176: 20129 | B176: 群众团体事务 | C176: =SUM(C177:C182) -> 40
A177: 2012901 | B177: 行政运行
A178: 2012902 | B178: 一般行政管理事务 | C178: 40
A179: 2012903 | B179: 机关服务
A180: 2012906 | B180: 工会事务
A181: 2012950 | B181: 事业运行
A182: 2012999 | B182: 其他群众团体事务支出
A183: 20131 | B183: 党委办公厅(室)及相关机构事务 | C183: =SUM(C184:C189) -> 90
A184: 2013101 | B184: 行政运行 | C184: 20
A185: 2013102 | B185: 一般行政管理事务 | C185: 50
A186: 2013103 | B186: 机关服务
A187: 2013105 | B187: 专项业务
A188: 2013150 | B188: 事业运行
A189: 2013199 | B189: 其他党委办公厅(室)及相关机构事务支出 | C189: 20
A190: 20132 | B190: 组织事务 | C190: =SUM(C191:C196) -> 10
A191: 2013201 | B191: 行政运行
A192: 2013202 | B192: 一般行政管理事务 | C192: 10
A193: 2013203 | B193: 机关服务
A194: 2013204 | B194: 公务员事务
A195: 2013250 | B195: 事业运行
A196: 2013299 | B196: 其他组织事务支出
A197: 20133 | B197: 宣传事务 | C197: =SUM(C198:C203) -> 70
A198: 2013301 | B198: 行政运行 | C198: 20
A199: 2013302 | B199: 一般行政管理事务 | C199: 30
A200: 2013303 | B200: 机关服务
A201: 2013304 | B201: 宣传管理
... 1452 more rows

Sheet 4一般公共预算本级基本支出表
A1: 岳阳县张谷英镇2021年一般公共预算本级基本支出表
A2: 单位：万元
A3: 科目代码 | C3: 科目名称 | D3: 金额
A4: 类 | B4: 款
C5: 合计 | D5: =D6+D11+D22+D30+D37+D41+D44+D48+D51+D57+D61+D66+D69+D76+D79 -> 3252
A6: 501 | C6: 机关工资福利支出 | D6: =SUM(D7:D10) -> 1184
B7: 01 | C7: 工资奖金津补贴 | D7: 891
B8: 02 | C8: 社会保障缴费 | D8: 177
B9: 03 | C9: 住房公积金 | D9: 76
B10: 99 | C10: 其他工资福利支出 | D10: 40
A11: 502 | C11: 机关商品和服务支出 | D11: =SUM(D12:D21) -> 620
B12: 01 | C12: 办公经费 | D12: 80
B13: 02 | C13: 会议费 | D13: 30
B14: 03 | C14: 培训费 | D14: 20
B15: 04 | C15: 专用材料购置费 | D15: 50
B16: 05 | C16: 委托业务费 | D16: 200
B17: 06 | C17: 公务接待费 | D17: 15
B18: 07 | C18: 因公出国(境)费用 | D18: 0
B19: 08 | C19: 公务用车运行维护费 | D19: 15
B20: 09 | C20: 维修(护)费 | D20: 60
B21: 99 | C21: 其他商品和服务支出 | D21: 150
A22: 503 | C22: 机关资本性支出(一) | D22: =SUM(D23:D29) -> 470
B23: 01 | C23: 房屋建筑物购建
B24: 02 | C24: 基础设施建设 | D24: 260
B25: 03 | C25: 公务用车购置
B26: 05 | C26: 土地征迁补偿和安置支出
B27: 06 | C27: 设备购置 | D27: 30
B28: 07 | C28: 大型修缮 | D28: 60
B29: 99 | C29: 其他资本性支出 | D29: 120
A30: 504 | C30: 机关资本性支出(二) | D30: =SUM(D31:D36) -> 0
B31: 01 | C31: 房屋建筑物购建
B32: 02 | C32: 基础设施建设
B33: 03 | C33: 公务用车购置
B34: 04 | C34: 设备购置
B35: 05 | C35: 大型修缮
B36: 99 | C36: 其他资本性支出
A37: 505 | C37: 对事业单位经常性补助 | D37: =SUM(D38:D40) -> 200
B38: 01 | C38: 工资福利支出
B39: 02 | C39: 商品和服务支出
B40: 99 | C40: 其他对事业单位补助 | D40: 200
A41: 506 | C41: 对事业单位资本性补助 | D41: =SUM(D42:D43) -> 40
B42: 01 | C42: 资本性支出(一) | D42: 40
B43: 02 | C43: 资本性支出(二)
A44: 507 | C44: 对企业补助 | D44: =SUM(D45:D47) -> 20
B45: 01 | C45: 费用补贴
B46: 02 | C46: 利息补贴
B47: 99 | C47: 其他对企业补助 | D47: 20
A48: 508 | C48: 对企业资本性支出 | D48: =SUM(D49:D50) -> 0
B49: 01 | C49: 对企业资本性支出(一)
B50: 02 | C50: 对企业资本性支出(二)
A51: 509 | C51: 对个人和家庭的补助 | D51: =SUM(D52:D56) -> 408
B52: 01 | C52: 社会福利和救助 | D52: 240
B53: 02 | C53: 助学金
B54: 03 | C54: 个人农业生产补贴
B55: 05 | C55: 离退休费 | D55: 113
B56: 99 | C56: 其他对个人和家庭补助 | D56: 55
A57: 510 | C57: 对社会保障基金补助 | D57: =SUM(D58:D60) -> 130
B58: 02 | C58: 对社会保险基金补助 | D58: 130
B59: 03 | C59: 补充全国社会保障基金
B60: 04 | C60: 对机关事业单位年金的补助
A61: 511 | C61: 债务利息及费用支出 | D61: =SUM(D62:D65) -> 0
B62: 01 | C62: 国内债务付息
B63: 02 | C63: 国外债务付息
B64: 03 | C64: 国内债务发行费用
B65: 04 | C65: 国外债务发行费用
A66: 512 | C66: 债务还本支出 | D66: =SUM(D67:D68) -> 0
B67: 01 | C67: 国内债务还本
B68: 02 | C68: 国外债务还本
A69: 513 | C69: 转移性支出 | D69: =SUM(D70:D75) -> 60
B70: 01 | C70: 上下级政府转移性支出
B71: 02 | C71: 援助其他地区支出
B72: 03 | C72: 债务转贷
B73: 04 | C73: 调出资金
B74: 05 | C74: 安排预算稳定调节资金 | D74: 40
B75: 06 | C75: 补充预算周转金 | D75: 20
A76: 514 | C76: 预备费及预留 | D76: =SUM(D77:D78) -> 0
B77: 01 | C77: 预备费
B78: 02 | C78: 预留
A79: 599 | C79: 其他支出 | D79: =SUM(D80:D84) -> 120
B80: 06 | C80: 赠与
B81: 07 | C81: 国家赔偿费用支出
B82: 08 | C82: 对民间非营利组织和群众性自治组织补贴
B83: 99 | C83: 其他支出 | D83: 120

Sheet 5一般公共预算税收返还和转移支付表
A1: 岳阳县张谷英镇2021年一般公共预算税收返还和转移支付
A2: 单位：万元
A4: 收 入 项 目 | B4: 金 额
A5: 一、地方公共财政预算收入 | B5: =B6+B7 -> 636.00
A6: 1、税收返还收入 | B6: 232.50
A7: 2、非税收入 | B7: 403.50
A8: 二、上级财政补助收入 | B8: =B9+B13 -> 4309.00
A9: （一）上级专项转移支付 | B9: =B10+B11+B12 -> 2552.74
A10: 1、村级组织运转 | B10: 357.79
A11: 2、铁山水资源保护 | B11: 0.00
A12: 3、专项指标 | B12: 2194.95
A13: （二）一般性转移支付 | B13: =SUM(B14:B26) -> 1756.26
A14: 1、基数补贴 | B14: 84.16
A15: 2、税收返还 | B15: 0.00
A16: 3、税改转移支付 | B16: 117.33
A17: 4、工资转移支付 | B17: 55.27
A18: 5、铁山水资源保护 | B18: 0.00
A19: 6、财力性转移支付 | B19: 135.99
A20: 7、增收奖 | B20: 0.00
A21: 8、体制补助 | B21: 138.10
A22: 9、均衡性转转移支付 | B22: 1055.73
A23: 10、绩效奖励 | B23: 99.00
A24: 11、县财政负担医保金 | B24: 3.40
A25: 12、村干部参加城乡居民养老保险补助 | B25: 17.28
A26: 13、其他收入 | B26: 50

Sheet 6专项转移支付分地区分项目公开表
A1: 岳阳县张谷英镇2021年预算专项转移支付分地区分项目公开表
A2: 单位：万元
A3: 地区（行政村/ 居委会） | B3: 项 目
B4: 农林水 | C4: 城乡社区 | D4: 节能环保 | E4: 交通运输 | F4: 其他
A5: 天龙村 | B5: 103 | C5: 56 | D5: 23 | E5: 13 | F5: 12
A6: 渭洞村 | B6: 76 | C6: 47 | D6: 22 | E6: 12 | F6: 12
A7: 风水村 | B7: 108 | C7: 48 | D7: 23 | E7: 12 | F7: 12
A8: 张谷英村 | B8: 67 | C8: 45 | D8: 22 | E8: 12 | F8: 12
A9: 大明山村 | B9: 82 | C9: 45 | D9: 24 | E9: 12 | F9: 12
A10: 五洋村 | B10: 95 | C10: 46 | D10: 24 | E10: 12 | F10: 12
A11: 松树村 | B11: 68 | C11: 48 | D11: 22 | E11: 13 | F11: 12
A12: 芭蕉村 | B12: 81 | C12: 48 | D12: 22 | E12: 12 | F12: 12
A13: 倒溪村 | B13: 75 | C13: 46 | D13: 22 | E13: 13 | F13: 12
A14: 莲花湖村 | B14: 85 | C14: 48 | D14: 22 | E14: 13 | F14: 12
A15: 饶村村 | B15: 108 | C15: 53 | D15: 25 | E15: 13 | F15: 12
A16: 大峰村 | B16: 108 | C16: 53 | D16: 25 | E16: 13 | F16: 12
A17: 朱公桥村 | B17: 89 | C17: 48 | D17: 23 | E17: 10 | F17: 10
A18: 居委会 | B18: 80.74 | C18: 42 | D18: 21 | E18: 10 | F18: 10
A19: 合计 | B19: =SUM(B5:B18) -> 1225.74 | C19: =SUM(C5:C18) -> 673 | D19: =SUM(D5:D18) -> 320 | E19: =SUM(E5:E18) -> 170 | F19: =SUM(F5:F18) -> 164

Sheet 7政府一般债务限额表和余额表
A1: 岳阳县张谷英镇政府一般债务限额和余额表
C2: 单位：万元
A3: 年份 | B3: 限额情况 | C3: 余额情况
A5: 注：张谷英镇无政府一般债务限额和余额，故以空表列示

Sheet 8政府性基金收入表
A1: 张谷英镇2021年政府性基金预算收入预算表
B2: 单位：万元
A3: 收入 | B3: 计划数
A4: 一、国有土地使用权出让收入
A5: 二、缴纳新增建设用地土地有偿使用费
A6: 三、污水处理费收入
A7: 四、专项债券收入
A8: 五、其他政府性基金收入
A11: 合 计
A12: 注：张谷英镇本年度无政府性基金预算收入，故以空表列示

Sheet 9政府性基金支出表
A1: 岳阳县张谷英镇2021年政府性基金预算支出预算表
C2: 单位：万元
A3: 支出 | B3: 计划数 | C3: 备注
A4: 一、城乡社区支出
A5: 国有土地使用权出让支出
A6: 城市公用事业附加支出
A7: 二、 专项支出
A8: 三、其他政府基金支出
A9: 四、调出资金
A10: 五、本年结余
A11: 合 计
A12: 注：张谷英镇本年度无政府性基金预算支出，故以空表列示

Sheet 10政府性基金转移支付表
A1: 政府性基金转移支付表
A2: 单位：万元
A3: 地区名称 | B3: 预算数
A4: 市（县、镇）名1
A5: 市（县、镇）名2
A6: 市（县、镇）名3
A7: 市（县、镇）名4
A8: 市（县、镇）名5
A9: ……
A10: 未分配数
A11: 合计
A12: 注：张谷英镇本年度无政府性基金转移支付预算，故以空表列示

Sheet 11政府专项债务限额和余额表
A1: 岳阳县张谷英镇政府专项债务限额和余额表
C2: 单位：万元
A3: 年份 | B3: 限额情况 | C3: 余额情况
A5: 注：张谷英镇本年度无政府专项债务限额和余额，故以空表列示

Sheet 12国有资本经营收入表
A1: 岳阳县张谷英镇2021年国有资本经营收入预算表
C2: 单位：万元
A3: 收入
A4: 名称 | B4: 计划数 | C4: 备注
A10: 合计
A11: 注：张谷英镇本年度无国有资本经营收入，故以空表列示。

Sheet 13国有资本经营支出表
A1: 岳阳县张谷英镇2021年国有资本经营支出预算表
C2: 单位：万元
A3: 支出
A4: 名称 | B4: 计划数 | C4: 备注
A5: 一、国有资本经营预算支出
A6: 解决历史遗留问题及改革成本支出
A7: 生态环保支出
A8: 其他国有资本经营预算支出
A9: 二、调出资金
A10: 合计
A11: 注：张谷英镇本年度无国有资本经营支出，故以空表列示。

Sheet 14社会保险基收入
A1: 岳阳县张谷英镇2021年社会保险基金收入预算表
I2: 单位：万元
A3: 项 目 | B3: 合计 | C3: 企业职工基本养老保险 | D3: 城乡居民基本养老保险 | E3: 机关事业单位基本养老保险 | F3: 职工基本医疗保险 | G3: 城乡居民基本医疗保险 | H3: 工伤保险 | I3: 失业保险
A4: 一、收入 | B4: =SUM(B5:B12) -> 1430.37 | C4: =SUM(C5:C12) -> 0.00 | D4: 235.50 | E4: 124.90 | F4: 54.66 | G4: 1011.01 | H4: 3.70 | I4: 0.60
A5: 1、保险费收入 | B5: =C5+D5+E5+F5+G5+H5+I5 -> 1298.62 | C5: 0.00 | D5: 235.50 | E5: 41.60 | F5: 10.41 | G5: 1011.01 | I5: 0.10
A6: 2、利息收入 | B6: =C6+D6+E6+F6+G6+H6+I6 -> 0.00
A7: 3、财政补贴收入 | B7: 131.75 | E7: 83.30 | F7: 44.25 | H7: 3.70 | I7: 0.50
A8: 其中：上级补助 | B8: 0.00
A9: 本级补助 | B9: 0.00
A10: 4、委托投资收益 | B10: 0.00
A11: 5、其他收入 | B11: 0.00
A12: 6、转移收入 | B12: 0.00

Sheet 15社会保险基金支出表
A1: 岳阳县张谷英镇2020年社会保险基金支出预算表
I2: 单位：万元
A3: 项 目 | B3: 合计 | C3: 企业职工基本养老保险 | D3: 城乡居民基本养老保险 | E3: 机关事业单位基本养老保险 | F3: 职工基本医疗保险 | G3: 城乡居民基本医疗保险 | H3: 工伤保险 | I3: 失业保险
A4: 支出合计 | B4: =SUM(B5:B9) -> 1430.37 | C4: =SUM(C5:C9) -> 0.00 | D4: 235.50 | E4: 124.90 | F4: 54.66 | G4: 1011.01 | H4: 3.70 | I4: 0.60
A5: 1、社会保险待遇支出 | B5: =C5+D5+E5+F5+G5+H5+I5 -> 1430.37 | D5: 235.50 | E5: 124.90 | F5: 54.66 | G5: 1011.01 | H5: 3.70 | I5: 0.60
A6: 2、其他支出 | B6: =C6+D6+E6+F6+G6+H6+I6 -> 0.00
A7: 3、转移支出 | B7: =C7+D7+E7+F7+G7+H7+I7 -> 0.00
A8: 本年收支结余 | B8: =C8+D8+E8+F8+G8+H8+I8 -> 0.00
A9: 年末滚存结余 | B9: =C9+D9+E9+F9+G9+H9+I9 -> 0.00

Sheet 16三公经费
A1: 岳阳县张谷英镇2021年“三公”经费预算汇总表
B2: 单位：万元
A3: 项目 | B3: 本年预算数
A4: 合计 | B4: 30
A5: 1、因公出国（境）费用 | B5: 0
A6: 2、公务接待费 | B6: 15
A7: 3、公务用车费 | B7: 15
A8: 其中：（1）公务用车运行维护费 | B8: 15
A9: （2）公务用车购置 | B9: 0
A10: 注：1、按照党中央、国务院有关文件及部门预算管理有关规定，“三公”经费包括因公出国（境）费、公务用车购置及运行费和公务接待费。（1）因公出国（境）费，指单位工作人员公务出国（境）的住宿费、旅费、伙食补助费、杂费、培训费等支出。（2）公务接待费15万包含镇机关接待费10万、农推中心公务接待费2万、水务工作站公务接待费1万、劳动民政保障站接待费1万、社会办接待费1万。（3）公用用车包括镇机关集镇垃圾车、洒水车、消防车公务用车运行维护费及镇机关防汛灭火及重大突发事件的处置用车。
